fUSD/lending_fUSD_20240614
["ID","MTS","AMOUNT","RATE_DAILY","PERIOD"]
[329506076,1718406656401,-771.69,0.00021917,2]
[329506077,1718406656453,-151.0,0.00021917,2]
[329506078,1718406656470,-500.0,0.00021917,2]
[329506079,1718406656481,-151.0,0.00021917,2]
[329506080,1718406656493,-500.0,0.00021917,2]
[329506081,1718406656506,-500.0,0.00021917,2]
[329506082,1718406656523,-844.38,0.00021917,2]
[329506083,1718406656535,-500.0,0.00021917,2]
[329506084,1718406656558,-500.0,0.00021917,2]
[329506085,1718406656571,-500.0,0.00021917,2]
[329506086,1718406656583,-606.9,0.00021917,2]
[329506087,1718406656598,-500.0,0.00021917,2]
[329506088,1718406656611,-500.0,0.00021917,2]
[329506089,1718406656623,-500.0,0.00021917,2]
[329506090,1718406656640,-500.0,0.00021917,2]
[329506091,1718406656846,-500.0,0.00021917,2]
[329506092,1718406656863,-500.0,0.00021917,2]
[329506093,1718406656874,-505.7,0.00021917,2]
[329506094,1718406656896,-741.19,0.00021917,2]
[329506095,1718406656909,-151.0,0.00021917,2]
[329506096,1718406656931,-3042.19,0.00021917,2]
[329506097,1718406656964,-500.0,0.00021917,2]
[329506098,1718406656996,-759.87,0.00021917,2]
[329506099,1718406657024,-500.0,0.00021917,2]
[329506100,1718406657037,-500.0,0.00021917,2]
[329506101,1718406657066,-668.88,0.00021917,2]
[329506102,1718406657076,-500.0,0.00021917,2]
[329506103,1718406657116,-962.19,0.00021917,2]
[329506104,1718406657171,-500.0,0.00021917,2]
[329506105,1718406657228,-500.0,0.00021917,2]
[329506106,1718406657261,-182.73,0.00021917,2]
[329506107,1718406657300,-500.0,0.00021917,2]
[329506108,1718406657320,-1530.55,0.00021917,2]
[329506109,1718406657332,-1876.46,0.00021917,2]
[329506110,1718406657349,-500.0,0.00021917,2]
[329506111,1718406657361,-500.0,0.00021917,2]
[329506112,1718406657384,-757.05,0.00021917,2]
[329506113,1718406657430,-500.0,0.00021917,2]
[329506114,1718406657446,-17936.44,0.00021917,2]
[329506115,1718406657464,-151.0,0.00021917,2]
[329506116,1718406657489,-151.0,0.00021917,2]
[329506117,1718406657528,-777.82,0.00021917,2]
[329506118,1718406657551,-500.0,0.00021917,2]
[329506119,1718406657572,-500.0,0.00021917,2]
[329506120,1718406657595,-151.0,0.00021917,2]
[329506121,1718406657605,-1511.46,0.00021917,2]
[329506122,1718406657626,-23403.96,0.00021917,2]
[329506123,1718406657661,-722.26,0.00021917,2]
[329506124,1718406657683,-500.0,0.00021917,2]
[329506125,1718406657712,-500.0,0.00021917,2]
[329506126,1718406657736,-942.3,0.00021917,2]
[329506127,1718406657814,-993.47,0.00021917,2]
[329506128,1718406657839,-500.0,0.00021917,2]
[329506129,1718406657858,-500.0,0.00021917,2]
[329506130,1718406657896,-1610.380918,0.00021917,2]
[329506131,1718406657921,-1610.380918,0.00021917,2]
[329506132,1718406657972,-1610.380918,0.00021917,2]
[329506133,1718406657984,-1605.03,0.00021917,2]
[329506134,1718406658017,-1610.380918,0.00021917,2]
[329506135,1718406658034,-1610.380918,0.00021917,2]
[329506136,1718406658089,-1610.380918,0.00021917,2]
[329506137,1718406658148,-500.0,0.00021917,2]
[329506138,1718406658180,-500.0,0.00021917,2]
[329506139,1718406658190,-1009.66,0.00021917,2]
[329506140,1718406658248,-500.0,0.00021917,2]
[329506141,1718406658261,-184.452593,0.00021917,2]
[329506142,1718406658278,-500.0,0.00021917,2]
[329506143,1718406658314,-151.0,0.00021917,2]
[329506144,1718406658345,-805.75,0.00021917,2]
[329506145,1718406658382,-151.0,0.00021917,2]
[329506146,1718406658417,-151.0,0.00021917,2]
[329506147,1718406658433,-500.0,0.00021917,2]
[329506148,1718406658445,-1217.43,0.00021917,2]
[329506149,1718406658455,-151.0,0.00021917,2]
[329506150,1718406658483,-538.86,0.00021917,2]
[329506151,1718406658498,-151.858014,0.00021917,2]
[329506152,1718406658510,-500.0,0.00021917,2]
[329506153,1718406658529,-310.47318591,0.00021917,2]
[329506154,1718406658543,-500.0,0.00021917,2]
[329506155,1718406658554,-920.12,0.00021917,2]
[329506156,1718406658565,-579.24,0.00021917,2]
[329506157,1718406658591,-500.0,0.00021917,2]
[329506158,1718406658608,-500.0,0.00021917,2]
[329506159,1718406658619,-3671.67,0.00021917,2]
[329506160,1718406658630,-500.0,0.00021917,2]
[329506161,1718406658642,-500.0,0.00021917,2]
[329506162,1718406658658,-1206.38,0.00021917,2]
[329506163,1718406658688,-868.74,0.00021917,2]
[329506164,1718406658709,-500.0,0.00021917,2]
[329506165,1718406658761,-500.0,0.00021917,2]
[329506166,1718406658773,-235.724186,0.00021917,2]
[329506167,1718406658829,-500.0,0.00021917,2]
[329506168,1718406658846,-500.0,0.00021917,2]
[329506169,1718406658881,-500.0,0.00021917,2]
[329506170,1718406658892,-682.59,0.00021917,2]
[329506171,1718406658907,-593.12,0.00021917,2]
[329506172,1718406658933,-1011.06,0.00021917,2]
[329506173,1718406658949,-500.0,0.00021917,2]
[329506174,1718406658964,-500.0,0.00021917,2]
[329506175,1718406658993,-1390.06,0.00021917,2]
[329506176,1718406659022,-500.0,0.00021917,2]
[329506177,1718406659092,-500.0,0.00021917,2]
[329506178,1718406659114,-500.0,0.00021917,2]
[329506179,1718406659127,-500.0,0.00021917,2]
[329506180,1718406659152,-500.0,0.00021917,2]
[329506181,1718406659163,-500.0,0.00021917,2]
[329506182,1718406659188,-2195.55,0.00021917,2]
[329506183,1718406659199,-680.1,0.00021917,2]
[329506184,1718406659248,-500.0,0.00021917,2]
[329506185,1718406659262,-151.0,0.00021917,2]
[329506186,1718406659290,-151.0,0.00021917,2]
[329506187,1718406659316,-151.0,0.00021917,2]
[329506188,1718406659334,-5302.63,0.00021917,2]
[329506189,1718406659346,-500.0,0.00021917,2]
[329506190,1718406659388,-21137.75,0.00021917,2]
[329506191,1718406659480,-500.0,0.00021917,2]
[329506192,1718406659520,-782.44,0.00021917,2]
[329506193,1718406659556,-913.54,0.00021918,2]
[329506194,1718406659594,-161.2,0.00021918,2]
[329506195,1718406659630,-250.0,0.00021918,2]
[329506196,1718406659671,-500.0,0.00021956,3]
[329506197,1718406659786,-1384.10253972,0.00021957,2]
[329506198,1718406660197,-10000.0,0.00021452,2]
[329506199,1718406660223,-1557.94,0.00021917,2]
[329506200,1718406660249,-512.33027186,0.00021917,2]
[329506201,1718406660280,-500.0,0.00021917,2]
[329506202,1718406660321,-11842.26191996,0.00021957,2]
[329506203,1718406660360,-176.47864197,0.00021957,2]
[329506204,1718406660416,-157.7286237,0.00021957,2]
[329506205,1718406660440,-189.27401487,0.00021957,2]
[329506206,1718406660463,-151.0,0.00021957,7]
[329506207,1718406660486,-151.0,0.00021957,7]
[329506208,1718406660505,-151.0,0.00021957,7]
[329506209,1718406660538,-151.0,0.00021957,7]
[329506210,1718406660593,-466.2,0.00021959,2]
[329506211,1718406660614,-9623.92989144,0.0002198,3]
[329506212,1718406660650,-151.0,0.0002199,7]
[329506213,1718406660666,-151.0,0.0002199,7]
[329506214,1718406660698,-180.41243131,0.00022,2]
[329506215,1718406660917,-489.49212976,0.00022,2]
[329506216,1718406660931,-1719.91416596,0.00022,2]
[329506217,1718406661281,-78.66605802,0.00022,2]
[329506218,1718406661328,-683.514,0.00022,2]
[329506219,1718406661360,-446.9224433,0.00022,2]
[329506220,1718406661377,-298.31787138,0.00022,2]
[329506221,1718406661393,-1996.19291569,0.00022,2]
[329506222,1718406661720,-6837.47890034,0.00022,2]
[329506223,1718406661747,-151.0,0.00022,7]
[329506224,1718406661758,-1610.380918,0.00022,7]
[329506225,1718406661772,-1610.380918,0.00022,7]
[329506226,1718406661796,-151.0,0.00022,7]
[329506227,1718406661807,-500.0,0.00022028,2]
[329506228,1718406661823,-200.0,0.00022028,2]
[329506229,1718406661863,-151.0,0.00022036,7]
[329506230,1718406661907,-370.24845285,0.00022046,2]
[329506231,1718406661937,-9623.92989144,0.00022046,3]
[329506232,1718406661951,-67367.5092401,0.00022046,3]
[329506233,1718406661974,-28871.7896743,0.00022047,3]
[329506234,1718406662004,-151.0,0.00022047,7]
[329506235,1718406662056,-151.0,0.00022047,7]
[329506236,1718406662066,-151.0,0.00022047,7]
[329506237,1718406662088,-151.0,0.00022047,7]
[329506238,1718406662100,-1610.380918,0.00022047,7]
[329506239,1718406662124,-1610.380918,0.00022047,7]
[329506240,1718406662138,-151.0,0.00022047,7]
[329506241,1718406662149,-151.0,0.00022047,7]
[329506242,1718406662167,-154.255031,0.00022056,7]
[329506243,1718406662186,-151.0,0.00022056,7]
[329506244,1718406662200,-151.0,0.00022056,7]
[329506245,1718406662227,-151.0,0.00022056,7]
[329506246,1718406662254,-151.0,0.00022056,7]
[329506247,1718406662272,-151.0,0.00022056,7]
[329506248,1718406662299,-151.0,0.00022056,7]
[329506249,1718406662332,-151.0,0.00022056,7]
[329506250,1718406662344,-151.0,0.00022056,7]
[329506251,1718406662366,-151.0,0.00022056,7]
[329506252,1718406662415,-151.0,0.00022056,7]
[329506253,1718406662512,-151.0,0.00022056,7]
[329506254,1718406662658,-500.0,0.00022056,3]
[329506255,1718406662677,-1610.380918,0.00022056,7]
[329506256,1718406662708,-1610.380918,0.00022056,7]
[329506257,1718406662720,-151.0,0.00022056,7]
[329506258,1718406662744,-151.0,0.00022056,7]
[329506259,1718406662805,-140571.27350256,0.00022056,2]
[329506260,1718406662868,-157.41772469,0.00022056,2]
[329506261,1718406662893,-1926.69035194,0.00022056,2]
[329506262,1718406662936,-68530.4055872,0.00022057,2]
[329506263,1718406662950,-25724.93358471,0.00022057,2]
[329506264,1718406662985,-500.0,0.00022062,3]
[329506265,1718406663020,-4633.89819231,0.00022063,2]
[329506266,1718406663037,-2199.22889,0.00022063,2]
[329506267,1718406663055,-259.34325549,0.00022063,2]
[329506268,1718406663758,-14096.96690943,0.00022063,2]
[329506269,1718406663779,-12258.37352711,0.00022063,2]
[329506270,1718406663814,-355.4625208,0.00022063,2]
[329506271,1718406663828,-3450.49798637,0.00022063,2]
[329506272,1718406663843,-298.9533,0.00022063,2]
[329506273,1718406663884,-400.57,0.00022063,2]
[329506274,1718406663924,-86647.7492837,0.00022063,2]
[329506275,1718406663952,-489.173034,0.00022063,2]
[329506276,1718406664006,-7153.97025362,0.00022063,2]
[329506277,1718406664030,-8327.08634973,0.00022063,2]
[329506278,1718406664068,-151.0,0.00022063,7]
[329506279,1718406664084,-151.0,0.00022063,7]
[329506280,1718406664095,-285.224729,0.00022063,7]
[329506281,1718406664112,-151.0,0.00022063,7]
[329506282,1718406664132,-151.0,0.00022063,7]
[329506283,1718406664192,-151.0,0.00022063,7]
[329506284,1718406664245,-151.0,0.00022063,7]
[329506285,1718406664263,-1610.380918,0.00022063,7]
[329506286,1718406664304,-1610.380918,0.00022063,7]
[329506287,1718406664315,-151.0,0.00022063,7]
[329506288,1718406664325,-151.0,0.00022063,7]
[329506289,1718406664345,-182.79194571,0.00022066,2]
[329506290,1718406664384,-68530.4055872,0.00022068,2]
[329506291,1718406664441,-500.0,0.00022069,3]
[329506292,1718406664452,-140571.27350256,0.0002207,2]
[329506293,1718406664464,-151.0,0.0002207,7]
[329506294,1718406664478,-151.0,0.0002207,7]
[329506295,1718406664497,-151.0,0.0002207,7]
[329506296,1718406664508,-140.1645714,0.0002207,7]
[329506297,1718406664581,-949.35871046,0.0002207,7]
[329506298,1718406664618,-424.51000035,0.0002207,7]
[329506299,1718406664643,-96.34763579,0.0002207,7]
[329506300,1718406664661,-675.36880707,0.0002207,7]
[329506301,1718406664712,-752.72,0.0002207,7]
[329506302,1718406664747,-182.29211093,0.0002207,7]
[329506303,1718406664773,-151.0,0.0002207,7]
[329506304,1718406664848,-151.0,0.0002207,7]
[329506305,1718406664931,-1002.20146567,0.0002207,2]
[329506306,1718406664953,-67528.20412153,0.0002207,2]
[329506307,1718406665012,-151.0,0.0002208,7]
[329506308,1718406665023,-151.0,0.0002208,7]
[329506309,1718406665060,-151.0,0.0002208,7]
[329506310,1718406665107,-500.0,0.0002208,3]
[329506311,1718406665119,-1610.380918,0.0002208,7]
[329506312,1718406665156,-1610.380918,0.0002208,7]
[329506313,1718406665212,-151.0,0.0002208,7]
[329506314,1718406665255,-151.0,0.0002208,7]
[329506315,1718406665302,-68530.4055872,0.0002208,2]
[329506316,1718406665328,-37266.00754465,0.00022081,2]
[329506317,1718406665343,-41662.82809785,0.00022081,2]
[329506318,1718406665376,-424.88308538,0.00022081,2]
[329506319,1718406665453,-563.8784653,0.00022081,2]
[329506320,1718406955993,1876.17,0.00024329,30]
[329506321,1718407155532,4000.0,0.00028,90]
[329506322,1718407506078,2500.0,0.00027,60]
[329506323,1718407507326,1719.82,0.00024329,30]
[329506324,1718407735799,172.84,0.00024819,120]
[329506325,1718407748163,-471.85,0.00018058,2]
[329506326,1718407748196,-220.0,0.00019699,2]
[329506327,1718407748253,-28.03661052,0.00019699,2]
[329506328,1718407771119,-4269.10040477,0.00019599,2]
[329506329,1718407777276,2621.29069757,0.00017259,2]
[329506330,1718407777315,1734.56887151,0.00017259,2]
[329506332,1718407834102,-300.0,0.00017258,2]
[329506333,1718407834134,-150.0,0.00017258,2]
[329506336,1718407834147,-163.7881643,0.00017259,2]
[329506339,1718407834187,-1078.78165656,0.00017259,2]
[329506340,1718407835538,-1000.37172,0.00017259,2]
[329506341,1718407835597,-3132.50342781,0.00017259,2]
[329506342,1718407835627,-1241.72374471,0.00017259,2]
[329506343,1718407835657,-503.15430007,0.00017259,2]
[329506344,1718407835725,-6643.9959,0.00017259,2]
[329506345,1718407835748,-775.19666386,0.00017259,2]
[329506346,1718407835761,-18.54747705,0.00017259,2]
[329506347,1718407835786,-210.0,0.00018984,2]
[329506348,1718407835805,-51.89440295,0.00019502,2]
[329506349,1718407835896,-103.10559705,0.00019502,2]
[329506350,1718407835931,-3572.0,0.000197,2]
[329506351,1718407835991,-278.26,0.00019726,2]
[329506352,1718407836020,-172.84,0.00019855,2]
[329506353,1718407836067,-682.68,0.00019879,2]
[329506354,1718407836108,-4581.73,0.00019879,2]
[329506356,1718407836136,-179.58,0.00019886,2]
[329506358,1718407836176,-23890.0,0.00019891,2]
[329506360,1718407836201,-499.99,0.00019891,2]
[329506361,1718407836224,-250.0,0.00019956,2]
[329506363,1718407836256,-1498.66,0.00019956,8]
[329506366,1718407836278,-931.64,0.00019959,2]
[329506369,1718407836322,-250.0,0.0002005,2]
[329506371,1718407836355,-226.78109354,0.000201,2]
[329506374,1718407836397,-317.32,0.00020179,2]
[329506375,1718407836472,-380.91,0.00020258,2]
[329506385,1718407836740,-380.91,0.00020313,2]
[329506387,1718407836753,-471.85,0.00020322,2]
[329506388,1718407836781,-380.91,0.00020369,2]
[329506390,1718407836800,-380.91,0.00020424,2]
[329506392,1718407836828,-173.02,0.00020471,2]
[329506394,1718407836872,-380.91,0.0002048,2]
[329506397,1718407836921,-186.96,0.00020518,2]
[329506399,1718407836949,-380.91,0.00020536,2]
[329506401,1718407836998,-380.91,0.00020591,2]
[329506405,1718407837077,-380.91,0.00020647,2]
[329506407,1718407837089,-380.91,0.00020702,2]
[329506409,1718407837101,-413.36,0.00020753,2]
[329506411,1718407837140,-380.91,0.00020758,2]
[329506412,1718407837154,-380.91,0.00020813,2]
[329506415,1718407837184,-380.91,0.00020869,2]
[329506416,1718407837225,-271.0,0.00020882,2]
[329506418,1718407837248,-380.91,0.00020924,2]
[329506420,1718407837263,-380.91,0.0002098,2]
[329506422,1718407837275,-1250.0,0.00021,2]
[329506424,1718407837286,-380.91,0.00021036,2]
[329506425,1718407837320,-380.91,0.00021091,2]
[329506426,1718407837331,-380.91,0.00021147,2]
[329506429,1718407837374,-380.91,0.00021202,2]
[329506432,1718407837438,-380.91,0.00021258,2]
[329506434,1718407837448,-380.91,0.00021313,2]
[329506436,1718407837472,-10000.0,0.00021452,2]
[329506439,1718407837489,-219.44,0.00021589,2]
[329506441,1718407837501,-2500.0,0.00021597,2]
[329506443,1718407837515,-158.37,0.00021601,2]
[329506444,1718407837529,-607.54808298,0.00021612,2]
[329506445,1718407837588,-530.62329279,0.00021686,2]
[329506446,1718407837622,-46864.2539291,0.00021687,2]
[329506447,1718407837643,-384.30387683,0.0002169,2]
[329506448,1718407837657,-158.20894934,0.00021695,2]
[329506449,1718407837710,-413734.91575481,0.00021697,2]
[329506450,1718407837721,-188.70718237,0.0002179,2]
[329506451,1718407837736,-107427.5792216,0.000218,2]
[329506452,1718407837751,-360.4355624,0.000218,2]
[329506453,1718407837763,-21.20615405,0.00021817,2]
[329506454,1718407837777,-150.24205663,0.00021817,2]
[329506455,1718407837809,-133.86594397,0.00021817,2]
[329506456,1718407837842,-42.5169863,0.00021817,2]
[329506457,1718407837880,-270.24178255,0.0002186,2]
[329506458,1718407837912,-797.47137745,0.0002186,2]
[329506459,1718407837930,-2863.47992758,0.00021907,2]
[329506460,1718407837968,-27586.1865127,0.00021907,2]
[329506461,1718407838872,-4064.0,0.00021907,2]
[329506468,1718407840742,-7272.65439133,0.00021452,2]
[329506470,1718407840786,-2727.34560867,0.00021452,2]
[329506472,1718407840802,-25595.46854443,0.00021907,2]
[329506473,1718407840824,-1869.7443923,0.00021907,2]
[329506474,1718407840868,-446.62731363,0.00021907,2]
[329506475,1718407840884,-1043.4,0.00021907,2]
[329506476,1718407840914,-9971.81448615,0.00021907,2]
[329506479,1718407842181,-789.30350907,0.00021452,2]
[329506480,1718407842197,-983.77098898,0.00021452,2]
[329506481,1718407842234,-208.98901108,0.00021907,2]
[329506482,1718407842277,-64934.88024913,0.00021907,2]
[329506483,1718407842309,-151.44,0.00021907,2]
[329506484,1718407842337,-151.44,0.00021907,2]
[329506485,1718407842379,-338.82841871,0.00021915,2]
[329506486,1718407842450,-499.99472741,0.00021916,2]
[329506487,1718407842473,-385.3606346,0.00021916,2]
[329506488,1718407842494,-157.43413252,0.00021917,2]
[329506489,1718407842515,-1726.47475632,0.00021917,2]
[329506490,1718407842529,-500.0,0.00021917,2]
[329506491,1718407842568,-428.17289696,0.00021917,2]
[329506492,1718407842583,-500.0,0.00021917,2]
[329506493,1718407842598,-500.0,0.00021917,2]
[329506494,1718407842652,-500.0,0.00021917,2]
[329506495,1718407842662,-500.0,0.00021917,2]
[329506496,1718407842709,-500.0,0.00021917,2]
[329506497,1718407842744,-500.28623124,0.00021917,2]
[329506498,1718407842759,-500.0,0.00021917,2]
[329506499,1718407842794,-500.0,0.00021917,2]
[329506500,1718407842832,-500.0,0.00021917,2]
[329506501,1718407842867,-500.0,0.00021917,2]
[329506502,1718407842923,-500.0,0.00021917,2]
[329506503,1718407842951,-591.93534024,0.00021917,2]
[329506504,1718407842977,-500.0,0.00021917,2]
[329506505,1718407842993,-500.0,0.00021917,2]
[329506506,1718407843018,-500.0,0.00021917,2]
[329506507,1718407843033,-500.0,0.00021917,2]
[329506508,1718407843084,-500.0,0.00021917,2]
[329506509,1718407843121,-449.70701258,0.00021917,2]
[329506510,1718407843136,-500.0,0.00021917,2]
[329506511,1718407843166,-506.11105956,0.00021917,2]
[329506512,1718407843220,-500.0,0.00021917,2]
[329506513,1718407843233,-500.0,0.00021917,2]
[329506514,1718407843252,-500.0,0.00021917,2]
[329506515,1718407843277,-578.54752639,0.00021917,2]
[329506516,1718407843287,-500.0,0.00021917,2]
[329506517,1718407843298,-500.0,0.00021917,2]
[329506518,1718407843315,-500.0,0.00021917,2]
[329506519,1718407843352,-500.0,0.00021917,2]
[329506520,1718407843387,-500.0,0.00021917,2]
[329506521,1718407843417,-500.0,0.00021917,2]
[329506522,1718407843453,-500.0,0.00021917,2]
[329506523,1718407843495,-500.0,0.00021917,2]
[329506524,1718407843525,-500.0,0.00021917,2]
[329506525,1718407843542,-500.0,0.00021917,2]
[329506526,1718407843579,-226.04727769,0.00021917,2]
[329506527,1718407843680,-500.0,0.00021917,2]
[329506528,1718407843747,-500.0,0.00021917,2]
[329506529,1718407843793,-500.0,0.00021917,2]
[329506530,1718407843805,-500.0,0.00021917,2]
[329506531,1718407843817,-500.0,0.00021917,2]
[329506532,1718407843835,-500.0,0.00021917,2]
[329506533,1718407843868,-500.0,0.00021917,2]
[329506534,1718407843911,-500.0,0.00021917,2]
[329506535,1718407843944,-500.0,0.00021917,2]
[329506536,1718407843977,-500.0,0.00021917,2]
[329506537,1718407844035,-307.77811944,0.00021917,2]
[329506538,1718407844061,-500.0,0.00021917,2]
[329506539,1718407844149,-458.2615998,0.00021917,2]
[329506540,1718407844167,-500.0,0.00021917,2]
[329506541,1718407844188,-500.0,0.00021917,2]
[329506542,1718407844225,-511.23,0.00021917,2]
[329506543,1718407844276,-500.0,0.00021917,2]
[329506544,1718407844304,-500.0,0.00021917,2]
[329506545,1718407844315,-500.0,0.00021917,2]
[329506546,1718407844352,-403.95763315,0.00021917,2]
[329506547,1718407844364,-500.0,0.00021917,2]
[329506548,1718407844378,-500.0,0.00021917,2]
[329506549,1718407844411,-500.0,0.00021917,2]
[329506550,1718407844431,-500.0,0.00021917,2]
[329506551,1718407844470,-400.89310284,0.00021917,2]
[329506552,1718407844482,-500.0,0.00021917,2]
[329506553,1718407844493,-537.16,0.00021917,2]
[329506554,1718407844517,-474.29,0.00021917,2]
[329506555,1718407844541,-500.0,0.00021917,2]
[329506556,1718407844553,-500.0,0.00021917,2]
[329506557,1718407844596,-500.0,0.00021917,2]
[329506558,1718407844635,-500.0,0.00021917,2]
[329506559,1718407844652,-500.0,0.00021917,2]
[329506560,1718407844668,-500.0,0.00021917,2]
[329506561,1718407844685,-500.0,0.00021917,2]
[329506562,1718407844703,-500.0,0.00021917,2]
[329506563,1718407844719,-500.0,0.00021917,2]
[329506564,1718407844768,-500.0,0.00021917,2]
[329506565,1718407844780,-500.0,0.00021917,2]
[329506566,1718407844807,-500.0,0.00021917,2]
[329506567,1718407844819,-500.0,0.00021917,2]
[329506568,1718407844844,-500.0,0.00021917,2]
[329506569,1718407844880,-470.13593219,0.00021917,2]
[329506570,1718407844899,-29.86406781,0.00021917,2]
[329506571,1718407844911,-500.0,0.00021917,2]
[329506572,1718407844956,-500.0,0.00021917,2]
[329506573,1718407844967,-505.12963076,0.00021917,2]
[329506574,1718407844996,-321.56940893,0.00021917,2]
[329506575,1718407845024,-178.43059107,0.00021917,2]
[329506576,1718407845036,-500.0,0.00021917,2]
[329506577,1718407845058,-500.0,0.00021917,2]
[329506578,1718407845117,-500.0,0.00021917,2]
[329506579,1718407845181,-500.0,0.00021917,2]
[329506580,1718407845193,-280.97987886,0.00021917,2]
[329506581,1718407845229,-500.0,0.00021917,2]
[329506582,1718407845284,-500.0,0.00021917,2]
[329506583,1718407845317,-500.0,0.00021917,2]
[329506584,1718407845353,-500.0,0.00021917,2]
[329506585,1718407845365,-500.0,0.00021917,2]
[329506586,1718407845386,-500.0,0.00021917,2]
[329506587,1718407845416,-500.0,0.00021917,2]
[329506588,1718407845432,-500.0,0.00021917,2]
[329506589,1718407845458,-500.0,0.00021917,2]
[329506590,1718407845471,-500.0,0.00021917,2]
[329506591,1718407845489,-500.0,0.00021917,2]
[329506592,1718407845524,-500.0,0.00021917,2]
[329506593,1718407845588,-500.0,0.00021917,2]
[329506594,1718407845606,-500.0,0.00021917,2]
[329506595,1718407845621,-500.0,0.00021917,2]
[329506596,1718407845650,-471.38896201,0.00021917,2]
[329506597,1718407845676,-28.61103799,0.00021917,2]
[329506598,1718407845704,-500.0,0.00021917,2]
[329506599,1718407845734,-517.89,0.00021917,2]
[329506600,1718407845746,-500.0,0.00021917,2]
[329506601,1718407845777,-500.0,0.00021917,2]
[329506602,1718407845788,-365.68796987,0.00021917,2]
[329506603,1718407845804,-134.31203013,0.00021917,2]
[329506604,1718407845820,-500.0,0.00021917,2]
[329506605,1718407845846,-487.26835805,0.00021917,2]
[329506606,1718407845876,-12.73164195,0.00021917,2]
[329506607,1718407845893,-500.0,0.00021917,2]
[329506608,1718407845904,-498.1964712,0.00021917,2]
[329506631,1718407846920,-426.35735425,0.00021917,2]
[329506632,1718407846955,-857.48160053,0.00021917,2]
[329506633,1718407847236,-217.96457402,0.00021917,2]
[329506634,1718407847256,-500.0,0.00021917,2]
[329506635,1718407847270,-500.0,0.00021917,2]
[329506636,1718407847281,-500.0,0.00021917,2]
[329506637,1718407847315,-272.91798568,0.00021917,2]
[329506638,1718407847326,-500.0,0.00021917,2]
[329506639,1718407847352,-500.0,0.00021917,2]
[329506640,1718407847377,-500.0,0.00021917,2]
[329506641,1718407847388,-500.0,0.00021917,2]
[329506642,1718407847405,-500.0,0.00021917,2]
[329506643,1718407847426,-500.0,0.00021917,2]
[329506644,1718407847449,-500.0,0.00021917,2]
[329506645,1718407847459,-500.0,0.00021917,2]
[329506646,1718407847481,-500.0,0.00021917,2]
[329506647,1718407847499,-500.0,0.00021917,2]
[329506648,1718407847516,-500.0,0.00021917,2]
[329506649,1718407847529,-500.0,0.00021917,2]
[329506650,1718407847547,-501.82213843,0.00021917,2]
[329506651,1718407847573,-500.0,0.00021917,2]
[329506652,1718407847585,-500.0,0.00021917,2]
[329506653,1718407847603,-500.0,0.00021917,2]
[329506654,1718407847617,-500.0,0.00021917,2]
[329506655,1718407847640,-500.0,0.00021917,2]
[329506656,1718407847664,-500.0,0.00021917,2]
[329506657,1718407847677,-500.0,0.00021917,2]
[329506658,1718407847696,-500.0,0.00021917,2]
[329506659,1718407847707,-500.0,0.00021917,2]
[329506660,1718407847719,-500.0,0.00021917,2]
[329506661,1718407847729,-500.0,0.00021917,2]
[329506662,1718407847739,-500.0,0.00021917,2]